fUST/lending_fUST_20250105
["ID","MTS","AMOUNT","RATE_DAILY","PERIOD"]
[347672111,1736047852518,-500.0,0.00019726,3]
[347672113,1736047852527,-500.0,0.00019726,3]
[347672115,1736047852536,-500.0,0.00019726,3]
[347672117,1736047852549,-977.92,0.00019726,3]
[347672119,1736047852559,-500.0,0.00019726,3]
[347672121,1736047852569,-1450.22,0.00019726,3]
[347672123,1736047852579,-500.0,0.00019726,3]
[347672137,1736047852704,-500.0,0.00019726,3]
[347672139,1736047852714,-500.0,0.00019726,3]
[347672141,1736047852724,-605.22,0.00019726,3]
[347672143,1736047852735,-500.0,0.00019726,3]
[347672146,1736047852744,-189.26048692,0.00019726,3]
[347672147,1736047852754,-522.38,0.00019726,3]
[347672150,1736047852763,-500.0,0.00019726,3]
[347672151,1736047852772,-500.0,0.00019726,3]
[347672154,1736047852782,-500.0,0.00019726,3]
[347672156,1736047852791,-596.42,0.00019726,3]
[347672158,1736047852800,-500.0,0.00019726,3]
[347672159,1736047852809,-500.0,0.00019726,3]
[347672161,1736047852818,-1027.34,0.00019726,3]
[347672164,1736047852828,-500.0,0.00019726,3]
[347672166,1736047852837,-935.0,0.00019726,3]
[347672167,1736047852847,-500.0,0.00019726,3]
[347672169,1736047852856,-500.0,0.00019726,3]
[347672171,1736047852866,-500.0,0.00019726,3]
[347672174,1736047852875,-1804.52,0.00019726,2]
[347672176,1736047852885,-503.92649313,0.00019726,3]
[347672178,1736047852894,-500.0,0.00019726,3]
[347672180,1736047852903,-500.0,0.00019726,3]
[347672182,1736047852913,-500.0,0.00019726,3]
[347672183,1736047852922,-585.79,0.00019726,3]
[347672186,1736047852931,-1495.75,0.00019726,3]
[347672188,1736047852941,-1108.11,0.00019726,3]
[347672190,1736047852950,-500.0,0.00019726,3]
[347672192,1736047852959,-3319.14,0.00019726,3]
[347672194,1736047852969,-5128.79,0.00019726,3]
[347672196,1736047852979,-500.0,0.00019726,3]
[347672198,1736047852988,-1073.74,0.00019726,3]
[347672200,1736047852997,-500.0,0.00019726,3]
[347672202,1736047853006,-500.0,0.00019726,3]
[347672204,1736047853016,-500.0,0.00019726,3]
[347672206,1736047853025,-500.0,0.00019726,3]
[347672208,1736047853034,-500.0,0.00019726,3]
[347672210,1736047853044,-874.77,0.00019726,3]
[347672212,1736047853053,-42518.38,0.00019726,3]
[347672214,1736047853062,-500.0,0.00019726,3]
[347672216,1736047853071,-900.21,0.00019726,3]
[347672218,1736047853081,-529.95,0.00019726,3]
[347672220,1736047853090,-4229.34,0.00019726,3]
[347672222,1736047853100,-500.0,0.00019726,3]
[347672224,1736047853109,-1764.12,0.00019726,3]
[347672226,1736047853118,-500.0,0.00019726,3]
[347672228,1736047853127,-742.48,0.00019726,3]
[347672230,1736047853136,-500.0,0.00019726,3]
[347672232,1736047853146,-1347.85,0.00019726,3]
[347672234,1736047853155,-751.36,0.00019726,3]
[347672236,1736047853164,-273.4941167,0.00019726,3]
[347672238,1736047853173,-2223.11,0.00019726,3]
[347672240,1736047853183,-525.07394147,0.00019726,3]
[347672242,1736047853192,-5173.51,0.00019726,3]
[347672244,1736047853201,-504.0785752,0.00019726,3]
[347672246,1736047853211,-500.0,0.00019726,3]
[347672248,1736047853220,-2312.18,0.00019726,3]
[347672250,1736047853231,-544.89,0.00019726,3]
[347672252,1736047853240,-500.0,0.00019726,3]
[347672254,1736047853250,-1957.34,0.00019726,3]
[347672256,1736047853259,-500.0,0.00019726,3]
[347672258,1736047853270,-500.0,0.00019726,3]
[347672260,1736047853279,-600.52,0.00019726,3]
[347672262,1736047853288,-500.0,0.00019726,3]
[347672264,1736047853297,-500.0,0.00019726,3]
[347672266,1736047853307,-500.0,0.00019726,3]
[347672268,1736047853316,-500.0,0.00019726,3]
[347672270,1736047853327,-1260.94,0.00019726,3]
[347672272,1736047853335,-500.0,0.00019726,3]
[347672274,1736047853346,-1941.33,0.00019726,3]
[347672276,1736047853355,-500.0,0.00019726,3]
[347672278,1736047853364,-3562.92,0.00019726,3]
[347672280,1736047853373,-3356.38,0.00019726,3]
[347672282,1736047853382,-500.0,0.00019726,3]
[347672284,1736047853392,-705.22,0.00019726,3]
[347672286,1736047853401,-984.19,0.00019726,3]
[347672288,1736047853411,-500.0,0.00019726,3]
[347672290,1736047853419,-681.49,0.00019726,2]
[347672292,1736047853428,-500.0,0.00019726,3]
[347672294,1736047853437,-500.0,0.00019726,3]
[347672296,1736047853447,-2826.37,0.00019726,3]
[347672298,1736047853455,-500.0,0.00019726,3]
[347672300,1736047853464,-1718.24,0.00019726,3]
[347672302,1736047853474,-1081.33,0.00019726,3]
[347672304,1736047853483,-500.0,0.00019726,3]
[347672306,1736047853493,-678.19,0.00019726,3]
[347672308,1736047853502,-1799.45,0.00019726,3]
[347672310,1736047853511,-1140.11,0.00019726,3]
[347672312,1736047853521,-666.88,0.00019726,3]
[347672314,1736047853530,-1343.58,0.00019726,3]
[347672316,1736047853541,-1360.54,0.00019726,3]
[347672318,1736047853550,-500.0,0.00019726,3]
[347672320,1736047853559,-1532.01,0.00019726,3]
[347672322,1736047853569,-500.0,0.00019726,3]
[347672324,1736047853578,-500.0,0.00019726,3]
[347672326,1736047853588,-767.32,0.00019726,3]
[347672328,1736047853597,-554.28,0.00019726,3]
[347672330,1736047853607,-500.0,0.00019726,3]
[347672332,1736047853616,-553.11241055,0.00019726,3]
[347672334,1736047853626,-607.1,0.00019726,3]
[347672336,1736047853635,-8007.94,0.00019726,3]
[347672338,1736047853644,-8554.69,0.00019726,3]
[347672340,1736047853654,-500.0,0.00019726,3]
[347672342,1736047853663,-872.7,0.00019726,3]
[347672344,1736047853672,-715.56,0.00019726,3]
[347672346,1736047853681,-1142.73,0.00019726,3]
[347672348,1736047853691,-302.9394212,0.0001976,2]
[347672350,1736047853700,-500.49180979,0.00019773,2]
[347672352,1736047853709,-440.29759026,0.00019773,2]
[347672354,1736047853719,-5126.15905965,0.00019797,2]
[347672356,1736047853728,-151.0,0.000198,2]
[347672358,1736047853737,-151.0,0.000198,2]
[347672360,1736047853746,-10319.76690089,0.000198,2]
[347672362,1736047853755,-160.0,0.00019863,3]
[347672364,1736047853765,-160.82812878,0.00019863,5]
[347672366,1736047853774,-151.0,0.000199,2]
[347672368,1736047853783,-4453.76676248,0.000199,2]
[347672370,1736047853792,-454.40913181,0.0001995,4]
[347672371,1736047853801,-5126.15905965,0.00019969,2]
[347672372,1736047853810,-500.0,0.00019973,2]
[347672374,1736047853819,-254782.45997129,0.00019998,15]
[347672384,1736047854007,-839.99999992,0.00019998,15]
[347672387,1736047854036,-4031.84681078,0.00019998,15]
[347672392,1736047854152,-500.0,0.00019178,2]
[347672393,1736047854161,-500.0,0.00019452,3]
[347672394,1736047854171,-1093.14492759,0.00019998,15]
[347672395,1736047854182,-493.28256153,0.00019998,15]
[347672396,1736047854193,-260.62074088,0.00019998,15]
[347672397,1736047854204,-964.17957643,0.00019998,15]
[347672398,1736047854219,-3290.01473372,0.00019998,15]
[347672399,1736048154352,652.0,0.00025,120]
[347672400,1736048798199,367.713806,0.00013973,2]
[347672401,1736048859420,1535.0,0.00015,30]
[347672402,1736048917831,1302.0,0.00025,120]
[347672403,1736048964106,-8240.45760615,0.00015,30]
[347672439,1736049032384,-224.54239385,0.00015,30]
[347672441,1736049032395,-200.0,0.00016355,2]
[347672443,1736049032405,-200.0,0.0001652,2]
[347672445,1736049032415,-269.49843418,0.00017842,2]
[347672447,1736049032426,-146.39212482,0.00017842,2]
[347672449,1736049032435,-167.89242085,0.00018084,2]
[347672452,1736049032447,-132.10757915,0.00018084,2]
[347672453,1736049032456,-6331.35529736,0.00018085,2]
[347672456,1736049032467,-4200.77559619,0.00018085,2]
[347672458,1736049032479,-9847.0010143,0.00018085,2]
[347672994,1736049038072,-4520.86809215,0.00018085,2]
[347672996,1736049038082,-242.98,0.00018686,2]
[347672998,1736049038091,-508.883,0.0001897,2]
[347673000,1736049038100,-3003.74831327,0.00019,2]
[347673002,1736049038109,-157.19250587,0.00019172,3]
[347673004,1736049038119,-154.27,0.00019177,2]
[347673006,1736049038127,-3894.33446107,0.00019177,2]
[347673008,1736049038139,-314.74,0.00019177,2]
[347673010,1736049038150,-500.0,0.00019177,2]
[347673014,1736049038173,-1031.22368033,0.00019177,2]
[347673016,1736049038184,-807.3147242,0.00019177,2]
[347673225,1736049040435,-1703.88250269,0.00019177,2]
[347673227,1736049040447,-567.648933,0.00019177,2]
[347673778,1736049046140,-1716.56631393,0.00018985,2]
[347674144,1736049918597,369.141956,0.00013973,2]
[347674189,1736050232124,-1452.12886799,0.00016547,2]
[347674191,1736050232134,-4396.0426646,0.00016714,2]
[347674193,1736050232143,-4396.0426646,0.00016883,2]
[347674195,1736050232153,-160.0,0.00017487,3]
[347674197,1736050232163,-160.0,0.00017487,5]
[347674199,1736050232172,-24900.0,0.00017731,2]
[347674201,1736050232181,-729.0913185,0.0001781,2]
[347674203,1736050232191,-4494.3367185,0.00017988,2]
[347674205,1736050232203,-68.1791568,0.00017988,2]
[347674207,1736050232214,-410.037873,0.00017988,2]
[347674209,1736050232223,-747.0275725,0.00018079,2]
[347674211,1736050232232,-57.95566,0.00018321,2]
[347674354,1736050237994,-167.33836047,0.00018321,2]
[347674356,1736050238003,-263.93307585,0.000189,2]
[347674357,1736050238013,-487.541,0.0001897,2]
[347674358,1736050238022,-3118.32739567,0.00018992,2]
[347674359,1736050238031,-39390.10805782,0.00018992,2]
[347674360,1736050238041,-9309.14374385,0.00018992,2]
[347674361,1736050238053,-5814.0,0.00019,2]
[347674362,1736050238062,-366.4565792,0.00019,2]
[347674363,1736050238072,-480.27191183,0.00019104,2]
[347674364,1736050238081,-500.0,0.00019109,2]
[347674365,1736050238091,-500.0,0.00019109,2]
[347674366,1736050238100,-500.0,0.00019109,2]
[347674367,1736050238109,-500.0,0.00019109,2]
[347674368,1736050238118,-157.71323284,0.00019109,2]
[347674369,1736050238127,-500.0,0.00019109,2]
[347674370,1736050238137,-500.0,0.00019109,2]
[347674371,1736050238147,-502.85164275,0.00019109,2]
[347674372,1736050238155,-500.0,0.00019109,2]
[347674373,1736050238164,-500.0,0.00019109,2]
[347674374,1736050238175,-500.0,0.00019109,2]
[347674375,1736050238184,-500.0,0.00019109,2]
[347674376,1736050238192,-470.80763348,0.00019109,2]
[347674377,1736050238201,-500.0,0.00019109,2]
[347674378,1736050238212,-500.0,0.00019109,2]
[347674379,1736050238222,-500.0,0.00019109,2]
[347674380,1736050238231,-500.0,0.00019109,2]
[347674381,1736050238240,-445.09744213,0.00019109,2]
[347674382,1736050238250,-500.0,0.00019109,2]
[347674383,1736050238259,-500.0,0.00019109,2]
[347674384,1736050238268,-500.0,0.00019109,2]
[347674385,1736050238278,-500.0,0.00019109,2]
[347674386,1736050238287,-229.74929984,0.00019109,2]
[347674387,1736050238296,-500.0,0.00019109,2]
[347674388,1736050238305,-277.82216588,0.00019109,2]
[347674755,1736050243027,-133.57637231,0.00019109,2]
[347677391,1736051017349,370.458006,0.00013973,2]
[347679512,1736051318693,1000.0,0.0001,2]
[347679513,1736051320446,453.0,0.0002,120]
[347679567,1736051432494,-980.0,0.0001683,2]
[347679569,1736051432504,-980.0,0.00017,2]
[347679571,1736051432515,-300.0,0.00018127,2]
[347679572,1736051432524,-15589.0480067,0.00018128,2]
[347679574,1736051432533,-306.065234,0.0001816,2]
[347679576,1736051432543,-175.9553839,0.000189,2]
[347679578,1736051432552,-467.135,0.0001897,2]
[347679581,1736051432562,-302.90913937,0.00019,2]
[347679583,1736051432571,-5000.0,0.00019111,2]
[347679584,1736051432581,-9696.35567925,0.00019176,2]
[347679586,1736051432591,-154.33,0.00019177,2]
[347679588,1736051432601,-25682.29624634,0.00019177,2]
[347679591,1736051432613,-7773.00243271,0.00019177,2]
[347679593,1736051432625,-42809.61661432,0.00019177,2]
[347679598,1736051432662,-198132.67128234,0.00019177,2]
[347679600,1736051432671,-6229.37491077,0.00019177,2]
[347679602,1736051432680,-259.435,0.00019177,2]
[347679604,1736051432690,-392.549553,0.00019177,2]
[347679606,1736051432699,-500.0,0.00019177,2]
[347679608,1736051432709,-441.90050907,0.00019177,2]
[347679610,1736051432718,-163.42307039,0.00019177,2]
[347679612,1736051432727,-500.0,0.00019177,2]
[347679614,1736051432737,-500.0,0.00019177,2]
[347679616,1736051432746,-500.0,0.00019177,2]
[347679618,1736051432755,-216.12193801,0.00019177,2]
[347679620,1736051432764,-500.0,0.00019177,2]
[347679622,1736051432773,-252.71624562,0.00019177,2]
[347679624,1736051432783,-172.63326027,0.00019177,2]
[347679626,1736051432792,-1749.78183492,0.00019178,2]
[347679628,1736051432801,-24645.14486472,0.00019178,2]
[347679630,1736051432810,-358.66157018,0.00019178,2]
[347679632,1736051432819,-501.35954835,0.00019178,2]
[347679634,1736051432830,-503.3874159,0.00019178,2]
[347679636,1736051432839,-506.34808424,0.00019178,2]
[347679637,1736051432847,-502.84403967,0.00019178,2]
[347679639,1736051432857,-502.83995132,0.00019178,2]
[347679642,1736051432866,-507.31446549,0.00019178,2]
[347679644,1736051432875,-502.55105795,0.00019178,2]
[347679645,1736051432885,-501.6356254,0.00019178,2]
[347679648,1736051432895,-501.36281414,0.00019178,2]
[347679650,1736051432904,-501.61922525,0.00019178,2]
[347679652,1736051432914,-502.49271739,0.00019178,2]
[347679654,1736051432923,-504.90574597,0.00019178,2]
[347679655,1736051432932,-501.13774435,0.00019178,2]
[347679658,1736051432942,-505.84608039,0.00019178,2]
[347679660,1736051432952,-508.49794643,0.00019178,2]
[347679662,1736051432962,-500.0,0.00019178,2]
[347679664,1736051432971,-634.72,0.00019178,2]
[347679665,1736051432980,-505.9545916,0.00019178,2]
[347679668,1736051432990,-500.0,0.00019178,2]
[347679669,1736051432999,-500.0,0.00019178,2]
[347679671,1736051433008,-496.99085582,0.00019178,2]
[347679674,1736051433018,-500.0,0.00019178,2]
[347679676,1736051433027,-501.44670324,0.00019178,2]
[347679678,1736051433037,-502.0744758,0.00019178,2]
[347679680,1736051433046,-500.72695735,0.00019178,2]
[347679682,1736051433055,-501.64127396,0.00019178,2]
[347679684,1736051433065,-502.00150927,0.00019178,2]
[347679686,1736051433075,-512.09038878,0.00019178,2]
[347679688,1736051433084,-524.84829302,0.00019178,2]
[347679690,1736051433094,-500.0,0.00019178,2]
[347679692,1736051433103,-503.39455186,0.00019178,2]
[347679694,1736051433113,-502.56134108,0.00019178,2]
[347679696,1736051433123,-504.09961485,0.00019178,2]
[347679698,1736051433132,-501.35007586,0.00019178,2]
[347679700,1736051433141,-502.21842814,0.00019178,2]
[347679702,1736051433151,-501.70254442,0.00019178,2]
[347679704,1736051433160,-500.0,0.00019178,2]
[347679706,1736051433170,-503.9165959,0.00019178,2]
[347679708,1736051433180,-504.06001708,0.00019178,2]
[347679709,1736051433189,-503.77030349,0.00019178,2]
[347679712,1736051433199,-288.55912932,0.00019178,2]
[347679714,1736051433209,-504.04161417,0.00019178,2]
[347679716,1736051433218,-500.0,0.00019178,2]
[347679717,1736051433228,-504.14063159,0.00019178,2]
[347679720,1736051433237,-503.38649486,0.00019178,2]
[347679721,1736051433246,-503.85418491,0.00019178,2]
[347679723,1736051433256,-500.0,0.00019178,2]
[347679725,1736051433265,-427.61086415,0.00019178,2]
[347679727,1736051433276,-502.38516878,0.00019178,2]
[347679730,1736051433288,-505.84019407,0.00019178,2]
[347679731,1736051433299,-501.20776723,0.00019178,2]
[347679733,1736051433309,-487.24690194,0.00019178,2]
[347679736,1736051433319,-608.17719823,0.00019178,2]
[347679737,1736051433328,-500.0,0.00019178,2]
[347679739,1736051433337,-501.22659294,0.00019178,2]
[347679742,1736051433350,-503.23851471,0.00019178,2]
[347679744,1736051433359,-503.13990531,0.00019178,2]
[347679746,1736051433371,-500.0,0.00019178,2]
[347679748,1736051433381,-500.0,0.00019178,2]
[347679750,1736051433389,-509.4,0.00019178,2]
[347679752,1736051433398,-502.90247617,0.00019178,2]
[347679753,1736051433408,-500.0,0.00019178,2]
[347679755,1736051433417,-500.0,0.00019178,2]
[347679757,1736051433427,-500.78587698,0.00019178,2]
[347679759,1736051433437,-508.5253242,0.00019178,2]
[347679762,1736051433448,-501.67731534,0.00019178,2]
[347679763,1736051433457,-504.11544158,0.00019178,2]
[347679766,1736051433467,-502.1106389,0.00019178,2]
[347679767,1736051433476,-504.89871024,0.00019178,2]
[347679769,1736051433486,-501.21417797,0.00019178,2]
[347679771,1736051433495,-500.0,0.00019178,2]
[347679773,1736051433505,-502.98594255,0.00019178,2]
[347679775,1736051433514,-522.96804308,0.00019178,2]
[347679778,1736051433525,-500.0,0.00019178,2]
[347679780,1736051433534,-503.57505101,0.00019178,2]
[347679782,1736051433544,-500.0,0.00019178,2]
[347679784,1736051433553,-500.0,0.00019178,2]
[347679786,1736051433562,-500.0,0.00019178,2]
[347679788,1736051433572,-502.37295611,0.00019178,2]
[347679790,1736051433581,-502.06470934,0.00019178,2]
[347679792,1736051433591,-502.22679953,0.00019178,2]
[347679794,1736051433601,-502.58613089,0.00019178,2]
[347679796,1736051433610,-500.0,0.00019178,2]
[347679798,1736051433619,-503.07789188,0.00019178,2]
[347679799,1736051433628,-502.96911301,0.00019178,2]
[347679802,1736051433638,-503.33227377,0.00019178,2]
[347679803,1736051433647,-501.31997209,0.00019178,2]
[347679805,1736051433657,-508.22740956,0.00019178,2]
[347679807,1736051433666,-501.11071424,0.00019178,2]
[347679809,1736051433675,-502.91995303,0.00019178,2]
[347679811,1736051433685,-501.38280465,0.00019178,2]
[347679813,1736051433694,-500.0,0.00019178,2]
[347679815,1736051433705,-503.51532739,0.00019178,2]
[347679817,1736051433715,-501.92595791,0.00019178,2]
[347679819,1736051433725,-505.50389404,0.00019178,2]
[347679821,1736051433734,-502.72858341,0.00019178,2]
[347679823,1736051433743,-223.55800713,0.00019178,2]
[347679825,1736051433753,-502.20289948,0.00019178,2]
[347679827,1736051433763,-500.0,0.00019178,2]
[347679829,1736051433772,-500.0,0.00019178,2]
[347679831,1736051433781,-503.59852382,0.00019178,2]
[347679833,1736051433790,-504.06126458,0.00019178,2]
[347679835,1736051433799,-502.02167406,0.00019178,2]
[347679837,1736051433809,-505.83726518,0.00019178,2]
[347679839,1736051433819,-520.64100276,0.00019178,2]
[347679841,1736051433828,-500.0,0.00019178,2]
[347679843,1736051433837,-151.0,0.00019178,2]
[347679845,1736051433847,-504.99819579,0.00019178,2]
[347679847,1736051433857,-507.46276088,0.00019178,2]
[347679849,1736051433866,-509.72930499,0.00019178,2]
[347679851,1736051433875,-503.99427488,0.00019178,2]
[347679853,1736051433885,-1177.6,0.00019178,2]
[347679855,1736051433895,-500.0,0.00019178,2]
[347679857,1736051433904,-505.73746167,0.00019178,2]
[347679859,1736051433913,-273.98200027,0.00019178,2]
[347679860,1736051433922,-500.0,0.00019178,2]
[347679862,1736051433932,-500.0,0.00019178,2]
[347679864,1736051433941,-524.4524063,0.00019178,2]
[347679866,1736051433951,-250.11231863,0.00019178,2]
[347679868,1736051433961,-500.0,0.00019178,2]
[347679871,1736051433971,-500.0,0.00019178,2]
[347679873,1736051433980,-757.8,0.00019178,2]
[347679874,1736051433989,-692.67,0.00019178,2]
[347679876,1736051433998,-500.0,0.00019178,2]
[347679878,1736051434008,-500.0,0.00019178,2]
[347679880,1736051434017,-504.04238459,0.00019178,2]
[347679882,1736051434026,-505.623645,0.00019178,2]
[347679884,1736051434036,-500.0,0.00019178,2]
[347679886,1736051434046,-500.0,0.00019178,2]
[347679888,1736051434055,-510.16992178,0.00019178,2]
[347679891,1736051434065,-522.6,0.00019178,2]
[347679892,1736051434074,-666.94,0.00019178,2]
[347679894,1736051434083,-500.0,0.00019178,2]
[347679896,1736051434093,-500.0,0.00019178,2]
[347679898,1736051434102,-500.0,0.00019178,2]
[347679916,1736051434268,-500.0,0.00019178,2]
[347679918,1736051434281,-501.04313824,0.00019178,2]
[347679921,1736051434291,-505.85501206,0.00019178,2]
[347679923,1736051434301,-505.16454205,0.00019178,2]
[347679925,1736051434310,-512.94062957,0.00019178,2]
[347679927,1736051434320,-216.98238637,0.00019178,2]
[347679929,1736051434329,-151.0,0.00019178,2]
[347679930,1736051434339,-500.0,0.00019178,2]
[347679932,1736051434348,-500.0,0.00019178,2]
[347679934,1736051434359,-500.0,0.00019178,2]
[347679936,1736051434369,-1196.21,0.00019178,2]
[347679939,1736051434379,-501.44939056,0.00019178,2]
[347679940,1736051434389,-500.0,0.00019178,2]
[347679943,1736051434399,-500.0,0.00019178,2]
[347679945,1736051434408,-633.45797318,0.00019178,2]
[347679946,1736051434418,-379.77237859,0.00019178,2]
[347679949,1736051434428,-220.927291,0.00019178,2]
[347679950,1736051434438,-220.927291,0.00019178,2]
[347679952,1736051434448,-500.0,0.00019178,2]
[347679954,1736051434458,-220.927291,0.00019178,2]
[347679956,1736051434468,-500.0,0.00019178,2]
[347679958,1736051434478,-220.927291,0.00019178,2]
[347679961,1736051434487,-575.59,0.00019178,2]
[347679963,1736051434497,-504.20804695,0.00019178,2]
[347679964,1736051434506,-501.91325189,0.00019178,2]
[347679967,1736051434516,-500.0,0.00019178,2]
[347679969,1736051434526,-500.0,0.00019178,2]
[347679971,1736051434535,-500.0,0.00019178,2]
[347679973,1736051434545,-506.22518273,0.00019178,2]
[347679974,1736051434554,-1131.66,0.00019178,2]
[347679976,1736051434564,-500.0,0.00019178,2]
[347679979,1736051434574,-500.0,0.00019178,2]
[347679981,1736051434584,-502.29600128,0.00019178,2]
[347679983,1736051434595,-500.0,0.00019178,2]
[347679985,1736051434604,-504.77751846,0.00019178,2]
[347679986,1736051434614,-509.83703833,0.00019178,2]
[347679988,1736051434624,-500.0,0.00019178,2]
[347679991,1736051434633,-788.87,0.00019178,2]
[347679993,1736051434643,-504.24420562,0.00019178,2]
[347679994,1736051434652,-500.0,0.00019178,2]
[347679996,1736051434662,-500.0,0.00019178,2]
[347679998,1736051434671,-500.0,0.00019178,2]
[347680000,1736051434681,-509.32615478,0.00019178,2]
[347680002,1736051434691,-511.43307004,0.00019178,2]
[347680004,1736051434701,-645.47,0.00019178,2]
[347680006,1736051434710,-500.0,0.00019178,2]
[347680008,1736051434720,-1023.87,0.00019178,2]
[347680010,1736051434729,-512.52,0.00019178,2]
[347680012,1736051434739,-500.0,0.00019178,2]
[347680013,1736051434749,-500.0,0.00019178,2]
[347680014,1736051434757,-513.57231687,0.00019178,2]
[347680015,1736051434767,-500.0,0.00019178,2]
[347680016,1736051434776,-507.55042271,0.00019178,2]
[347680017,1736051434785,-500.0,0.00019178,2]
[347680018,1736051434795,-529.13303381,0.00019178,2]
[347680019,1736051434805,-967.33,0.00019178,2]
[347680020,1736051434814,-500.0,0.00019178,2]
[347680021,1736051434824,-511.71927572,0.00019178,2]
[347680022,1736051434834,-773.39,0.00019178,15]
[347680023,1736051434843,-648.81,0.00019178,2]
[347680024,1736051434853,-500.0,0.00019178,2]
[347680025,1736051434862,-151.0,0.00019178,2]
[347680026,1736051434872,-500.0,0.00019178,2]
[347680027,1736051434881,-151.0,0.00019178,2]
[347680028,1736051434891,-500.0,0.00019178,2]
[347680029,1736051434901,-503.65178741,0.00019178,2]
[347680030,1736051434911,-535.67,0.00019178,2]
[347680031,1736051434920,-389.3999373,0.00019178,2]
[347680032,1736051434934,-500.0,0.00019178,2]
[347680033,1736051434944,-502.65646338,0.00019178,2]
[347680034,1736051434960,-934.75,0.00019178,2]
[347680035,1736051434971,-503.28983553,0.00019178,2]
[347680036,1736051434981,-500.0,0.00019178,2]
[347680037,1736051434991,-500.0,0.00019178,2]
[347680038,1736051435005,-507.72683286,0.00019178,2]
[347680039,1736051435014,-503.08124553,0.00019178,2]
[347680040,1736051435024,-9486.97,0.00019178,2]
[347680041,1736051435034,-9486.97,0.00019178,2]
[347680042,1736051435044,-9486.97,0.00019178,2]
[347680043,1736051435053,-500.0,0.00019178,2]
[347680044,1736051435063,-9486.97,0.00019178,2]
[347680045,1736051435072,-500.0,0.00019178,2]
[347680046,1736051435082,-9486.97,0.00019178,2]
[347680047,1736051435091,-501.62962424,0.00019178,2]
[347680048,1736051435101,-9486.97,0.00019178,2]
[347680049,1736051435111,-9486.97,0.00019178,2]
[347680050,1736051435122,-9486.97,0.00019178,2]
[347680051,1736051435132,-503.41280247,0.00019178,2]
[347680052,1736051435141,-9486.97,0.00019178,2]
[347680053,1736051435151,-9486.97,0.00019178,2]
[347680054,1736051435161,-500.0,0.00019178,2]
[347680055,1736051435171,-9486.97,0.00019178,2]
[347680056,1736051435181,-500.0,0.00019178,2]
[347680057,1736051435190,-9486.97,0.00019178,2]
[347680058,1736051435202,-502.34079412,0.00019178,2]
[347680059,1736051435212,-500.0,0.00019178,2]
[347680060,1736051435221,-500.0,0.00019178,2]
[347680061,1736051435231,-505.01946241,0.00019178,2]
[347680062,1736051435240,-500.0,0.00019178,2]
[347680063,1736051435249,-439.63967069,0.00019178,2]
[347680064,1736051435258,-651.5,0.00019178,2]
[347680065,1736051435268,-507.11060777,0.00019178,2]
[347680066,1736051435279,-152.730758,0.00019178,2]
[347680067,1736051435289,-500.0,0.00019178,2]
[347680068,1736051435299,-509.78890542,0.00019178,2]
[347680069,1736051435309,-500.0,0.00019178,2]
[347680070,1736051435319,-1362.99,0.00019178,2]
[347680071,1736051435329,-506.21974202,0.00019178,2]
[347680072,1736051435339,-504.2178372,0.00019178,2]
[347680073,1736051435348,-500.0,0.00019178,2]
[347680074,1736051435359,-500.0,0.00019178,2]
[347680075,1736051435368,-598.07,0.00019178,2]
[347680076,1736051435377,-552.04,0.00019178,2]
[347680077,1736051435387,-500.0,0.00019178,2]
[347680078,1736051435396,-151.0,0.00019178,2]
[347680079,1736051435406,-151.0,0.00019178,2]
[347680080,1736051435415,-151.0,0.00019178,2]
[347680081,1736051435424,-515.59434663,0.00019178,2]